fUST/lending_fUST_20251011
["ID","MTS","AMOUNT","RATE_DAILY","PERIOD"]
[390778829,1760146243313,-384.09,0.00029552,2]
[390778831,1760146243353,-1352.42497568,0.00029552,2]
[390778832,1760146243362,-3634.8638123,0.00029662,20]
[390778833,1760146244196,-225.55147277,0.00026,2]
[390778834,1760146244207,-382.27989295,0.00029662,20]
[390778835,1760146244218,-3607.23704644,0.00029662,20]
[390778836,1760146244245,-19000.00000065,0.00029662,20]
[390778860,1760146246219,-151.17525477,0.00029644,2]
[390778861,1760146246229,-140.15953065,0.00029644,2]
[390778862,1760146322726,527.4,0.0002876,120]
[390778865,1760146520212,1000.0,0.00028767,120]
[390778872,1760147004202,1975.0,0.000287,120]
[390778879,1760147217931,501.18,0.00028767,120]
[390778880,1760147249732,500.0,0.00028767,120]
[390778881,1760147401019,4461.56938475,0.00015571,2]
[390778882,1760147401043,5538.43061525,0.00015571,2]
[390778901,1760147432428,-153.34000654,0.000252,2]
[390778902,1760147432437,-501.49234096,0.000252,2]
[390778903,1760147432446,-150.0,0.00025205,2]
[390778904,1760147432455,-172.5,0.00025805,2]
[390778905,1760147432464,-195.0,0.00026405,2]
[390778906,1760147432473,-1000.0,0.00026964,30]
[390778907,1760147432482,-217.5,0.00027005,2]
[390778908,1760147432491,-1200.0,0.00027395,2]
[390778909,1760147432500,-1200.0,0.00027396,2]
[390778910,1760147432511,-300.0,0.00027396,2]
[390778912,1760147432520,-500.0,0.00027397,4]
[390778914,1760147432529,-500.0,0.00027397,4]
[390778916,1760147432539,-500.0,0.00027397,4]
[390778918,1760147432548,-500.0,0.00027397,4]
[390778920,1760147432557,-500.0,0.00027397,4]
[390778922,1760147432566,-500.0,0.00027397,4]
[390778924,1760147432576,-225.88968656,0.00027397,4]
[390778926,1760147432585,-465.95757416,0.00027397,60]
[390778927,1760147432594,-303.7393929,0.00028061,30]
[390778928,1760147432604,-153.34000654,0.00028672,2]
[390778929,1760147432614,-300.0,0.000287,2]
[390778931,1760147432622,-1570.55250134,0.00028757,10]
[390779006,1760147438136,-1624.42749866,0.00028757,10]
[390779007,1760147438146,-2662.48,0.00028757,10]
[390779008,1760147438156,-10004.0,0.00028767,2]
[390779009,1760147438166,-72522.0,0.00028767,30]
[390779010,1760147438175,-374.62288283,0.00028772,2]
[390779011,1760147438185,-153.919666,0.00028968,14]
[390779012,1760147438195,-152.475607,0.00028968,14]
[390779013,1760147438204,-156.45624588,0.0002899,2]
[390779014,1760147438213,-500.0,0.00028999,60]
[390779016,1760147438223,-500.0,0.00028999,60]
[390779018,1760147438233,-778.0,0.00029,30]
[390779020,1760147438242,-165.879,0.00029,21]
[390779022,1760147438252,-300.0,0.0002934,30]
[390779024,1760147438264,-300.0,0.0002934,30]
[390779027,1760147438274,-300.0,0.0002934,30]
[390779029,1760147438284,-300.0,0.0002934,30]
[390779031,1760147438293,-300.0,0.0002934,30]
[390779034,1760147438303,-300.0,0.0002934,30]
[390779035,1760147438312,-300.0,0.0002934,30]
[390779038,1760147438322,-300.0,0.0002934,30]
[390779040,1760147438332,-300.0,0.0002934,30]
[390779042,1760147438342,-300.0,0.0002934,30]
[390779044,1760147438352,-300.0,0.0002934,30]
[390779046,1760147438364,-300.0,0.0002934,30]
[390779047,1760147438374,-300.0,0.0002934,30]
[390779049,1760147438383,-300.0,0.0002934,30]
[390779051,1760147438393,-300.0,0.0002934,30]
[390779053,1760147438403,-153.919666,0.00029373,3]
[390779056,1760147438413,-152.475607,0.00029373,3]
[390779058,1760147438422,-590.0,0.00029428,7]
[390779060,1760147438432,-153.919666,0.00029501,10]
[390779062,1760147438442,-500.0,0.00029541,60]
[390779064,1760147438451,-18720.1115672,0.00029542,2]
[390779066,1760147438461,-869.94344266,0.00029542,2]
[390779068,1760147438470,-6853.73,0.00029551,2]
[390779070,1760147438479,-500.0,0.00029551,60]
[390779072,1760147438488,-500.0,0.00029551,60]
[390779073,1760147438497,-52599.43851937,0.00029552,2]
[390779075,1760147438507,-500.0,0.00029561,60]
[390779077,1760147438520,-7562.07818574,0.00029582,2]
[390779079,1760147438529,-3885.32882781,0.00029582,2]
[390779082,1760147438539,-153.919666,0.00029624,14]
[390779084,1760147438549,-152.475607,0.00029624,14]
[390779085,1760147438559,-18720.1115672,0.00029633,2]
[390779087,1760147438569,-869.94344266,0.00029633,2]
[390779089,1760147438579,-21918.07730434,0.00029643,2]
[390779092,1760147438591,-500.0,0.00029643,2]
[390779096,1760147438620,-12123.34345882,0.00029643,2]
[390779098,1760147438630,-521.55463576,0.00029651,3]
[390779100,1760147438639,-385.8164064,0.0002966,60]
[390779102,1760147438648,-242.66491503,0.00029661,2]
[390779103,1760147438658,-504.02697769,0.00029661,60]
[390779105,1760147438668,-2805.2692981,0.00029662,2]
[390779107,1760147438677,-1843.3230226,0.00029662,2]
[390779109,1760147438686,-329.0,0.00029662,7]
[390779111,1760147438695,-329.0,0.00029662,7]
[390779113,1760147438705,-329.0,0.00029662,7]
[390779115,1760147438714,-329.0,0.00029662,7]
[390779117,1760147438723,-329.0,0.00029662,7]
[390779119,1760147438733,-334.41020079,0.00029662,7]
[390779121,1760147438742,-151.53878159,0.00029662,30]
[390779123,1760147438751,-151.0,0.00029662,30]
[390779125,1760147438761,-329.0,0.00029662,7]
[390779127,1760147438772,-329.0,0.00029662,7]
[390779129,1760147438782,-329.0,0.00029662,7]
[390779131,1760147438792,-329.0,0.00029662,7]
[390779133,1760147438801,-329.0,0.00029662,7]
[390779136,1760147438811,-329.0,0.00029662,7]
[390779138,1760147438821,-329.0,0.00029662,7]
[390779139,1760147438831,-329.0,0.00029662,7]
[390779141,1760147438841,-198.76858008,0.00029662,20]
[390779143,1760147438851,-151.0,0.00029662,20]
[390779145,1760147438860,-151.0,0.00029662,20]
[390779147,1760147438870,-151.0,0.00029662,20]
[390779149,1760147438881,-2131.5988246,0.00029662,2]
[390779151,1760147438892,-151.0,0.00029662,20]
[390779153,1760147438904,-500.0,0.00029662,20]
[390779155,1760147438915,-510.61,0.00029662,10]
[390779157,1760147438924,-191.0,0.0002967,24]
[390779159,1760147438937,-153.919666,0.00029671,3]
[390779161,1760147438948,-152.475607,0.00029671,3]
[390779163,1760147438958,-151.0,0.00029671,3]
[390779165,1760147438968,-151.0,0.00029671,3]
[390779167,1760147438980,-151.0,0.00029671,3]
[390779169,1760147438990,-151.0,0.00029671,3]
[390779171,1760147439000,-151.0,0.00029671,3]
[390779173,1760147439009,-151.0,0.00029671,3]
[390779175,1760147439022,-151.6128558,0.00029671,3]
[390779177,1760147439032,-151.58438074,0.00029671,3]
[390779180,1760147439042,-151.0,0.00029671,3]
[390779182,1760147439053,-151.0,0.00029671,3]
[390779184,1760147439062,-151.0,0.00029671,3]
[390779186,1760147439072,-221.61764642,0.00029671,3]
[390779187,1760147439082,-151.0,0.00029671,3]
[390779190,1760147439094,-18720.1115672,0.00029671,2]
[390779192,1760147439106,-869.94344266,0.00029671,2]
[390779194,1760147439115,-500.0,0.00029672,2]
[390779196,1760147439125,-151.0,0.00029672,2]
[390779198,1760147439135,-151.35326993,0.00029672,2]
[390779200,1760147439144,-619.61,0.00029672,3]
[390779202,1760147439153,-500.51742862,0.00029673,5]
[390779204,1760147439163,-361.69385993,0.00029673,5]
[390779206,1760147439173,-150.16188023,0.00029673,5]
[390779208,1760147439183,-153.919666,0.00029673,30]
[390779210,1760147439193,-152.475607,0.00029673,30]
[390779212,1760147439204,-153.919666,0.00029678,20]
[390779214,1760147439214,-1209.97920093,0.00029679,12]
[390779216,1760147439225,-363.23533385,0.00029681,2]
[390779218,1760147439235,-188.65125252,0.00029681,2]
[390779220,1760147439244,-535.42449129,0.00029681,2]
[390779222,1760147439255,-500.0,0.00029681,2]
[390779224,1760147439269,-500.0,0.00029681,2]
[390779226,1760147439281,-500.0,0.00029681,2]
[390779228,1760147439291,-500.0,0.00029681,2]
[390779230,1760147439302,-500.0,0.00029681,2]
[390779232,1760147439311,-500.0,0.00029681,2]
[390779234,1760147439322,-509.68311436,0.00029681,2]
[390779236,1760147439332,-258.674,0.00029681,2]
[390779238,1760147439342,-3457395.63019246,0.00029682,20]
[390779241,1760147439355,-24391.66709757,0.00029682,20]
[390779243,1760147439367,-389.03876571,0.00029682,20]
[390779246,1760147439387,-879.2939947,0.00029682,20]
[390779248,1760147439398,-187377.51493216,0.00029682,20]
[390779250,1760147439409,-2794.68622641,0.00029682,20]
[390779252,1760147439422,-7797.70796679,0.00029682,20]
[390779357,1760147440423,-4334.835,0.00029682,20]
[390779360,1760147440443,-252.34093638,0.00029682,20]
[390779365,1760147440478,-287.6,0.00029682,20]
[390779926,1760147446387,-525.05728457,0.00029385,2]
[390779927,1760147446396,-31777.05911327,0.00029682,20]
[390779928,1760147446407,-11614.27697224,0.00029682,20]
[390779929,1760147446419,-14336.08399175,0.00029682,20]
[390779930,1760147446443,-783484.66653266,0.00029682,20]
[390780120,1760147810479,719.0,0.00028,120]
[390780121,1760147871433,192.65,0.00028767,120]
[390780130,1760148560132,-1200.0,0.00018998,2]
[390780131,1760148560152,-300.0,0.00018998,2]
[390780132,1760148560172,-300.0,0.00018998,2]
[390780133,1760148560192,-300.0,0.00018999,2]
[390780134,1760148560213,-300.0,0.00018999,2]
[390780135,1760148560231,-300.0,0.00018999,2]
[390780136,1760148560255,-1200.0,0.00018999,2]
[390780137,1760148560274,-5500.0,0.00019,2]
[390780138,1760148560293,-200.0,0.00019,2]
[390780139,1760148560313,-150.0,0.00019,2]
[390780140,1760148560334,-160.55543819,0.00019,2]
[390780141,1760148560355,-12187.36858495,0.00019,2]
[390780148,1760148632398,-637.0,0.00018999,2]
[390780150,1760148632408,-20631.50228245,0.00019,2]
[390780152,1760148632417,-204.34115237,0.0001937,3]
[390780154,1760148632427,-300.0,0.00019379,2]
[390780156,1760148632436,-300.0,0.00019379,2]
[390780158,1760148632445,-300.0,0.00019379,2]
[390780160,1760148632455,-300.0,0.00019379,2]
[390780162,1760148632464,-300.0,0.00019379,2]
[390780164,1760148632473,-300.0,0.00019379,2]
[390780166,1760148632483,-300.0,0.00019379,2]
[390780168,1760148632492,-300.0,0.00019379,2]
[390780170,1760148632502,-300.0,0.00019379,2]
[390780172,1760148632511,-300.0,0.00019379,2]
[390780174,1760148632520,-300.0,0.00019379,2]
[390780176,1760148632531,-300.0,0.00019379,2]
[390780179,1760148632540,-300.0,0.00019379,2]
[390780182,1760148632549,-300.0,0.00019379,2]
[390780185,1760148632558,-300.0,0.00019379,2]
[390780187,1760148632567,-172.5,0.000196,2]
[390780190,1760148632576,-150.0,0.00019705,2]
[390780193,1760148632585,-195.0,0.000202,2]
[390780195,1760148632594,-227.19209238,0.000208,2]
[390780198,1760148632604,-150.0,0.00021496,2]
[390780201,1760148632613,-298.08050243,0.00021819,2]
[390780203,1760148632623,-250.43001297,0.00022361,2]
[390780206,1760148632632,-458.309535,0.00024,2]
[390780209,1760148632641,-165.879,0.00024344,6]
[390780211,1760148632651,-1000.0,0.000268,10]
[390780213,1760148632660,-1000.0,0.000268,15]
[390780215,1760148632668,-265.96196093,0.00027397,2]
[390780217,1760148632678,-160.0,0.00027787,3]
[390780219,1760148632687,-18603.8837,0.0002795,2]
[390780220,1760148632696,-290.66568939,0.000287,2]
[390780221,1760148632705,-280.96716212,0.0002879,2]
[390780222,1760148632715,-164.87992821,0.0002899,2]
[390780223,1760148632724,-980.97,0.00028999,120]
[390780224,1760148632733,-980.97,0.00028999,120]
[390780225,1760148632743,-980.97,0.00028999,120]
[390780226,1760148632752,-980.97,0.00028999,120]
[390780227,1760148632761,-980.97,0.00028999,120]
[390780228,1760148632771,-980.97,0.00028999,120]
[390780229,1760148632782,-980.97,0.00028999,120]
[390780230,1760148632791,-980.97,0.00028999,120]
[390780231,1760148632801,-980.97,0.00028999,120]
[390780232,1760148632811,-980.97,0.00028999,120]
[390780233,1760148632820,-980.97,0.00028999,120]
[390780234,1760148632829,-980.97,0.00028999,120]
[390780235,1760148632839,-980.97,0.00028999,120]
[390780236,1760148632848,-980.97,0.00028999,120]
[390780237,1760148632857,-980.97,0.00028999,120]
[390780238,1760148632867,-980.97,0.00028999,120]
[390780239,1760148632876,-980.97,0.00028999,120]
[390780240,1760148632885,-980.97,0.00028999,120]
[390780241,1760148632895,-803.50327305,0.00028999,120]
[390780242,1760148632907,-177.46672695,0.00028999,120]
[390780243,1760148632915,-774.97102623,0.00028999,120]
[390780244,1760148632926,-205.99897377,0.00028999,120]
[390780245,1760148632935,-980.97,0.00028999,120]
[390780246,1760148632944,-980.97,0.00028999,120]
[390780247,1760148632953,-980.97,0.00028999,120]
[390780248,1760148632963,-981.0608025,0.00028999,120]
[390780249,1760148632971,-737.17883991,0.00029187,2]
[390780250,1760148632980,-914.0,0.00029329,2]
[390780251,1760148632990,-153.919666,0.00029374,3]
[390780252,1760148632999,-737.17883991,0.00029378,2]
[390780253,1760148633009,-600.0,0.00029479,2]
[390780254,1760148633018,-1210.80202305,0.00029498,13]
[390780255,1760148633030,-16848.1004105,0.00029504,2]
[390780256,1760148633040,-628.01239959,0.00029504,2]
[390780257,1760148633049,-412.044,0.00029514,2]
[390780258,1760148633059,-4604.03,0.00029571,10]
[390780259,1760148633067,-6717.53,0.00029581,2]
[390780260,1760148633077,-914.0,0.00029584,7]
[390780261,1760148633086,-623.98008962,0.00029587,2]
[390780262,1760148633096,-7384.7228806,0.00029587,2]
[390780263,1760148633106,-669.03192452,0.00029587,3]
[390780289,1760148638283,-360.82507419,0.00029587,3]
[390780294,1760148638335,-18754.38047641,0.00029587,3]
[390780296,1760148638346,-153.919666,0.00029598,10]
[390780298,1760148638359,-152.475607,0.00029598,10]
[390780300,1760148638371,-1000.0,0.000296,20]
[390780302,1760148638381,-1000.0,0.000296,30]
[390780304,1760148638393,-1000.0,0.000296,50]
[390780307,1760148638406,-1000.0,0.000296,60]
[390780309,1760148638418,-329.0,0.00029662,7]
[390780311,1760148638430,-329.0,0.00029662,7]
[390780313,1760148638442,-329.0,0.00029662,7]
[390780314,1760148638454,-329.0,0.00029662,7]
[390780315,1760148638465,-151.0,0.00029662,7]
[390780316,1760148638475,-151.6128558,0.00029662,7]
[390780317,1760148638486,-500.0,0.00029662,7]
[390780318,1760148638497,-151.0,0.00029662,7]
[390780320,1760148638508,-221.61764642,0.00029662,7]
[390780322,1760148638518,-151.0,0.00029662,30]
[390780323,1760148638528,-198.76858008,0.00029662,30]
[390780325,1760148638542,-151.0,0.00029662,30]
[390780328,1760148638551,-151.0,0.00029662,30]
[390780329,1760148638561,-151.0,0.00029662,30]
[390780331,1760148638571,-191.0,0.0002967,24]
[390780333,1760148638581,-16848.1004105,0.00029672,2]
[390780335,1760148638591,-628.01239959,0.00029672,2]
[390780337,1760148638601,-153.919666,0.00029672,3]
[390780339,1760148638610,-152.475607,0.00029672,3]
[390780341,1760148638621,-500.51742862,0.00029673,5]
[390780343,1760148638630,-361.69385993,0.00029673,5]
[390780344,1760148638640,-150.16188023,0.00029673,5]
[390780345,1760148638649,-16848.1004105,0.00029676,2]
[390780346,1760148638658,-628.01239959,0.00029676,2]
[390780347,1760148638669,-619.61,0.00029677,3]
[390780348,1760148638679,-84240.5020523,0.00029677,2]
[390780349,1760148638688,-3140.06199795,0.00029677,2]
[390780350,1760148638697,-151.0,0.00029681,23]
[390780351,1760148638707,-151.0,0.00029681,23]
[390780352,1760148638717,-151.0,0.00029681,23]
[390780353,1760148638726,-151.0,0.00029681,23]
[390780354,1760148638736,-151.0,0.00029681,23]
[390780355,1760148638746,-151.0,0.00029681,23]
[390780356,1760148638756,-151.58438074,0.00029681,23]
[390780357,1760148638766,-500.0,0.00029681,23]
[390780358,1760148638777,-151.0,0.00029681,23]
[390780359,1760148638791,-151.0,0.00029681,23]
[390780360,1760148638803,-151.35326993,0.00029681,23]
[390780361,1760148638814,-151.0,0.00029681,23]
[390780362,1760148638823,-151.0,0.00029681,23]
[390780363,1760148638835,-151.0,0.00029681,23]
[390780364,1760148638845,-151.23009497,0.00029681,23]
[390780365,1760148638857,-5326.4980577,0.00029682,2]
[390780366,1760148638867,-151.25028,0.00029682,30]
[390780367,1760148638877,-151.0,0.00029682,30]
[390780368,1760148638887,-151.0,0.00029682,30]
[390780369,1760148638897,-162.15964,0.00029682,30]
[390780370,1760148638907,-151.0,0.00029682,30]
[390780371,1760148638917,-151.0,0.00029682,30]
[390780372,1760148638927,-151.0,0.00029682,30]
[390780373,1760148638937,-172.0,0.00029682,7]
[390780374,1760148638948,-151.0,0.00029682,30]
[390780375,1760148638958,-151.625486,0.00029682,30]
[390780376,1760148638968,-329.0,0.00029682,7]
[390780377,1760148638978,-329.0,0.00029682,7]
[390780378,1760148638988,-329.0,0.00029682,7]
[390780379,1760148638998,-329.0,0.00029682,7]
[390780380,1760148639009,-329.0,0.00029682,7]
[390780381,1760148639019,-329.0,0.00029682,7]
[390780382,1760148639029,-329.0,0.00029682,7]
[390780383,1760148639042,-329.0,0.00029682,7]
[390780384,1760148639052,-329.0,0.00029682,7]
[390780385,1760148639062,-329.0,0.00029682,7]
[390780386,1760148639072,-329.0,0.00029682,7]
[390780387,1760148639083,-329.0,0.00029682,7]
[390780388,1760148639093,-329.0,0.00029682,7]
[390780389,1760148639103,-329.0,0.00029682,7]
[390780390,1760148639112,-329.0,0.00029682,7]
[390780391,1760148639122,-329.0,0.00029682,7]
[390780392,1760148639131,-329.0,0.00029682,7]
[390780393,1760148639141,-329.0,0.00029682,7]
[390780394,1760148639151,-329.0,0.00029682,7]
[390780395,1760148639160,-329.0,0.00029682,7]
[390780396,1760148639170,-329.0,0.00029682,7]
[390780397,1760148639180,-329.0,0.00029682,7]
[390780398,1760148639189,-329.0,0.00029682,7]
[390780399,1760148639199,-334.41020079,0.00029682,7]
[390780400,1760148639209,-162.199191,0.00029682,30]
[390780401,1760148639219,-162.199191,0.00029682,30]
[390780402,1760148639228,-162.199191,0.00029682,30]
[390780403,1760148639238,-162.199191,0.00029682,30]
[390780404,1760148639248,-162.199191,0.00029682,30]
[390780405,1760148639260,-162.199191,0.00029682,30]
[390780406,1760148639271,-162.199191,0.00029682,30]
[390780407,1760148639418,-162.199191,0.00029682,30]
[390780408,1760148639429,-162.199191,0.00029682,30]
[390780409,1760148639439,-162.199191,0.00029682,30]
[390780410,1760148639449,-162.199191,0.00029682,30]
[390780411,1760148639459,-162.199191,0.00029682,30]
[390780412,1760148639468,-162.199191,0.00029682,30]
[390780413,1760148639477,-162.199191,0.00029682,30]
[390780414,1760148639487,-162.199191,0.00029682,30]
[390780415,1760148639496,-162.199191,0.00029682,30]
[390780416,1760148639506,-162.199191,0.00029682,30]
[390780417,1760148639515,-162.199191,0.00029682,30]
[390780418,1760148639525,-162.199191,0.00029682,30]
[390780419,1760148639537,-162.199188,0.00029682,30]
[390780420,1760148639546,-5515.847738,0.00029682,2]
[390780421,1760148639554,-151.0,0.00029682,30]
[390780422,1760148639564,-151.0,0.00029682,30]
[390780423,1760148639573,-151.0,0.00029682,30]
[390780424,1760148639582,-153.154826,0.00029682,30]
[390780425,1760148639592,-166.0,0.00029682,7]
[390780426,1760148639602,-172.0,0.00029682,7]
[390780427,1760148639611,-175.0,0.00029682,7]
[390780428,1760148639621,-175.09993288,0.00029682,7]
[390780429,1760148639630,-166.0,0.00029682,7]
[390780430,1760148639639,-166.0,0.00029682,7]
[390780431,1760148639648,-157.0,0.00029682,7]
[390780432,1760148639657,-157.0,0.00029682,7]
[390780433,1760148639666,-157.0,0.00029682,7]
[390780434,1760148639675,-157.38428835,0.00029682,7]
[390780435,1760148639684,-329.0,0.00029682,7]
[390780436,1760148639693,-329.0,0.00029682,7]
[390780437,1760148639702,-329.0,0.00029682,7]
[390780438,1760148639711,-329.0,0.00029682,7]
[390780439,1760148639720,-329.0,0.00029682,7]
[390780440,1760148639730,-329.0,0.00029682,7]
[390780441,1760148639739,-329.0,0.00029682,7]
[390780442,1760148639749,-329.0,0.00029682,7]
[390780443,1760148639758,-329.0,0.00029682,7]
[390780444,1760148639768,-329.0,0.00029682,7]
[390780445,1760148639778,-329.0,0.00029682,7]
[390780446,1760148639790,-329.0,0.00029682,7]
[390780447,1760148639799,-329.0,0.00029682,7]
[390780448,1760148639808,-329.0,0.00029682,7]
[390780449,1760148639818,-329.0,0.00029682,7]
[390780450,1760148639827,-329.0,0.00029682,7]
[390780451,1760148639837,-329.0,0.00029682,7]
[390780452,1760148639847,-329.0,0.00029682,7]
[390780453,1760148639856,-329.0,0.00029682,7]
[390780455,1760148639865,-329.0,0.00029682,7]
[390780456,1760148639874,-329.0,0.00029682,7]
[390780458,1760148639885,-329.0,0.00029682,7]
[390780460,1760148639895,-329.0,0.00029682,7]
[390780462,1760148639905,-329.0,0.00029682,7]
[390780464,1760148639914,-329.0,0.00029682,7]
[390780466,1760148639923,-329.0,0.00029682,7]
[390780468,1760148639933,-329.0,0.00029682,7]
[390780471,1760148639943,-329.0,0.00029682,7]
[390780472,1760148639952,-329.0,0.00029682,7]
[390780474,1760148639961,-6135.8446467,0.00029682,2]
[390780476,1760148639971,-162.0,0.00029682,7]
[390780478,1760148639980,-193.59851528,0.00029682,7]
[390780480,1760148639989,-175.0,0.00029682,7]
[390780482,1760148639999,-175.0,0.00029682,7]
[390780484,1760148640008,-166.0,0.00029682,7]
[390780486,1760148640017,-157.0,0.00029682,7]
[390780488,1760148640027,-157.0,0.00029682,7]
[390780490,1760148640040,-159.67362917,0.00029682,7]
[390780492,1760148640050,-329.0,0.00029682,7]
[390780494,1760148640059,-329.0,0.00029682,7]
[390780496,1760148640068,-329.0,0.00029682,7]
[390780498,1760148640077,-329.0,0.00029682,7]
[390780500,1760148640089,-329.0,0.00029682,7]
[390780502,1760148640098,-329.0,0.00029682,7]
[390780504,1760148640107,-329.0,0.00029682,7]
[390780506,1760148640117,-329.0,0.00029682,7]
[390780508,1760148640127,-329.0,0.00029682,7]
[390780510,1760148640137,-329.0,0.00029682,7]
[390780512,1760148640146,-500.0,0.00029684,11]
[390780514,1760148640156,-501.34108094,0.00029684,11]
[390780516,1760148640166,-247.98454394,0.00029686,2]
[390780518,1760148640175,-448.86901325,0.00029686,2]
[390780520,1760148640185,-329.62490031,0.00029686,2]
[390780522,1760148640194,-500.0,0.00029686,2]
[390780525,1760148640204,-174.92859363,0.00029686,2]
[390780529,1760148640215,-627.27179882,0.00029686,2]
[390780532,1760148640225,-500.0,0.00029686,2]
[390780535,1760148640234,-373.14835861,0.00029686,2]
[390780537,1760148640243,-500.0,0.00029686,2]
[390780540,1760148640252,-500.0,0.00029686,2]
[390780543,1760148640266,-500.0,0.00029686,2]
[390780546,1760148640274,-500.0,0.00029686,2]
[390780549,1760148640286,-500.0,0.00029686,2]
[390780551,1760148640296,-464.8893187,0.00029686,2]
[390780554,1760148640306,-500.0,0.00029686,2]
[390780557,1760148640315,-500.0,0.00029686,2]
[390780560,1760148640325,-500.0,0.00029686,2]
[390780563,1760148640339,-500.0,0.00029686,2]
[390780566,1760148640349,-500.0,0.00029686,2]
[390780569,1760148640358,-155.11783244,0.00029686,2]
[390780572,1760148640367,-650.11619404,0.00029686,2]
[390780575,1760148640376,-160.71665769,0.00029686,2]
[390780578,1760148640386,-529.00292415,0.00029686,2]
[390780581,1760148640395,-151.0,0.00029687,30]
[390780583,1760148640404,-151.0,0.00029687,30]
[390780585,1760148640413,-151.0,0.00029687,30]
[390780588,1760148640423,-151.0,0.00029687,30]
[390780591,1760148640431,-151.0,0.00029687,30]
[390780594,1760148640441,-151.0,0.00029687,30]
[390780597,1760148640450,-151.0,0.00029687,30]
[390780600,1760148640459,-226.034416,0.00029687,30]
[390780603,1760148640468,-151.0,0.00029687,30]
[390780606,1760148640477,-151.0,0.00029687,30]
[390780609,1760148640487,-151.0,0.00029687,30]
[390780612,1760148640496,-151.0,0.00029687,30]
[390780615,1760148640505,-151.0,0.00029687,30]
[390780618,1760148640514,-151.0,0.00029687,30]
[390780621,1760148640523,-151.0,0.00029687,30]
[390780624,1760148640534,-151.0,0.00029687,30]
[390780627,1760148640544,-151.0,0.00029687,30]
[390780630,1760148640553,-151.0,0.00029687,30]
[390780633,1760148640562,-165.216492,0.00029687,30]
[390780636,1760148640571,-151.0,0.00029687,30]
[390780639,1760148640581,-151.0,0.00029687,30]
[390780642,1760148640591,-151.0,0.00029687,30]
[390780643,1760148640600,-151.0,0.00029687,30]
[390780646,1760148640609,-151.0,0.00029687,30]
[390780649,1760148640618,-151.0,0.00029687,30]
[390780652,1760148640627,-151.0,0.00029687,30]
[390780655,1760148640636,-151.0,0.00029687,30]
[390780658,1760148640645,-151.0,0.00029687,30]
[390780661,1760148640655,-151.0,0.00029687,30]
[390780664,1760148640664,-171.942435,0.00029687,30]
[390780667,1760148640673,-151.0,0.00029687,30]
[390780670,1760148640682,-151.0,0.00029687,30]
[390780673,1760148640691,-151.0,0.00029687,30]
[390780676,1760148640700,-299.222327,0.00029687,30]
[390780679,1760148640709,-151.0,0.00029687,30]
[390780682,1760148640718,-152.524726,0.00029687,30]
[390780685,1760148640727,-152.762693,0.00029687,30]
[390780688,1760148640736,-151.0,0.00029687,30]
[390780691,1760148640745,-151.368245,0.00029687,30]
[390780694,1760148640754,-151.0,0.00029687,30]
[390780697,1760148640763,-151.718471,0.00029687,30]
[390780700,1760148640772,-151.0,0.00029687,30]
[390780703,1760148640784,-151.0,0.00029687,30]
[390780706,1760148640793,-151.0,0.00029687,30]
[390780707,1760148640802,-151.0,0.00029687,30]
[390780710,1760148640811,-151.0,0.00029687,30]